bitfinex-derivatives/quotes_BTCF0:USTF0_20251220
["timestamp","ask_amount","ask_price","bid_price","bid_amount"]
[1766189342896,0.00568,88151.0,88137.0,0.00017019]
[1766189344798,0.0113518,88149.0,88137.0,0.00017019]
[1766189345397,0.0113523,88145.0,88137.0,9e-08]
[1766189345596,0.22692339,88150.0,88137.0,9e-08]
[1766189345799,0.0113529,88141.0,88137.0,9e-08]
[1766189346696,0.0170323,88145.0,88137.0,9e-08]
[1766189349204,0.0113527,88142.0,88137.0,9e-08]
[1766189352102,0.00568,88145.0,88129.0,0.00072]
[1766189352103,0.00568,88145.0,88129.0,9e-08]
[1766189355305,0.0113529,88141.0,88129.0,9e-08]
[1766189356904,0.0113529,88141.0,88128.0,0.00017019]
[1766189357106,0.0113529,88141.0,88128.0,0.00585019]
[1766189358492,0.22692339,88140.0,88120.0,0.00568]
[1766189358692,0.0113545,88128.0,88118.0,0.00176]
[1766189359296,0.011354,88132.0,88118.0,0.00176]
[1766189360706,0.00017019,88134.0,88116.0,0.00017019]
[1766189360907,0.0113543,88130.0,88116.0,0.00017019]
[1766189361106,0.0113543,88130.0,88117.0,0.001]
[1766189363107,0.0113543,88130.0,88117.0,0.00204]
[1766189365502,0.0113543,88130.0,88116.0,0.00017019]
[1766189365698,0.00017019,88134.0,88115.0,1.9e-07]
[1766189365904,0.0113546,88127.0,88105.0,0.0113574]
[1766189366213,0.0113546,88127.0,88106.0,0.00568]
[1766189371117,0.0113546,88127.0,88107.0,0.0113571]
[1766189371613,0.00017019,88134.0,88107.0,0.0113571]
[1766189371614,0.0113541,88131.0,88107.0,0.0113571]
[1766189372007,0.011355,88124.0,88108.0,0.00532]
[1766189372203,0.0113554,88121.0,88109.0,0.00568]
[1766189372416,0.0113554,88121.0,88110.0,0.00428]
[1766189373119,0.0113549,88125.0,88110.0,0.00428]
[1766189373603,0.00017019,88134.0,88100.0,0.011358]
[1766189373604,0.0113553,88122.0,88100.0,0.011358]
[1766189373803,0.0113557,88119.0,88101.0,0.00568]
[1766189374816,0.0148751,88124.0,88101.0,0.00568]
[1766189375916,0.0148751,88124.0,88102.0,0.0113578]
[1766189376823,0.0148751,88124.0,88103.0,0.00532]
[1766189381233,0.00352,88124.0,88105.0,0.0113574]
[1766189381426,0.00017019,88134.0,88111.0,0.0113566]
[1766189381729,0.00232,88133.0,88111.0,0.0113566]
[1766189383024,0.011354,88132.0,88111.0,0.0113566]
[1766189386528,0.011354,88132.0,88110.0,0.0113567]
[1766189387533,0.011354,88132.0,88103.0,0.00532]
[1766189387534,0.011354,88132.0,88106.0,0.0113572]
[1766189388638,0.011354,88132.0,88110.0,0.0113567]
[1766189391036,0.011354,88132.0,88093.0,0.0113589]
[1766189391239,0.00232,88133.0,88069.0,0.10192096]
[1766189391240,0.0113581,88100.0,88069.0,0.10192096]
[1766189391427,0.22686286,88093.0,88067.0,1.44808]
[1766189391626,0.0113597,88088.0,88074.0,0.00568]
[1766189392131,0.0113597,88088.0,88064.0,0.0113626]
[1766189392330,0.00017029,88095.0,88066.0,0.0113624]
[1766189392331,0.0113592,88092.0,88066.0,0.0113624]
[1766189393522,0.0113592,88092.0,88067.0,0.00532]
[1766189393938,0.0113596,88089.0,88068.0,0.0052]
[1766189394632,0.01136,88085.0,88068.0,0.0052]
[1766189395427,0.01136,88085.0,88060.0,0.0113632]
[1766189395627,0.011361,88078.0,88061.0,0.00356]
[1766189395825,0.01153129,88078.0,88061.0,0.00356]
[1766189398537,0.00017029,88078.0,88061.0,0.00356]
[1766189399340,0.00017029,88078.0,88065.0,0.0113625]
[1766189400244,0.00017029,88078.0,88061.0,0.00356]
[1766189400537,0.00017029,88078.0,88062.0,0.0113629]
[1766189400766,0.00017029,88078.0,88061.0,0.00356]
[1766189401040,0.00017029,88078.0,88068.0,0.0113621]
[1766189401041,2.9e-07,88078.0,88068.0,0.0113621]
[1766189401350,2.9e-07,88078.0,88064.0,0.0113627]
[1766189401537,2.9e-07,88078.0,88061.0,0.00356]
[1766189401944,2.9e-07,88078.0,88062.0,0.00452]
[1766189402145,2.9e-07,88078.0,88061.0,2.9e-07]
[1766189405643,2.9e-07,88078.0,88062.0,0.0113629]
[1766189406542,2.9e-07,88078.0,88066.0,0.0113624]
[1766189409850,2.9e-07,88078.0,88061.0,2.9e-07]
[1766189410348,2.9e-07,88078.0,88065.0,0.0113625]
[1766189411046,0.00012,88094.0,88068.0,0.22716945]
[1766189411246,0.00012,88094.0,88069.0,0.00568]
[1766189411847,0.0114789,88094.0,88073.0,0.0113615]
[1766189412150,0.00017029,88092.0,88073.0,0.0113615]
[1766189413155,0.00017029,88092.0,88069.0,0.00568]
[1766189413364,0.0113593,88091.0,88069.0,0.00568]
[1766189413862,0.00017029,88092.0,88070.0,0.0113619]
[1766189416063,0.00017029,88092.0,88073.0,0.0113615]
[1766189421966,0.00017029,88092.0,88080.0,0.22706089]
[1766189422861,1.44868,88105.0,88080.0,0.22706089]
[1766189422862,0.0113572,88107.0,88080.0,0.22706089]
[1766189423057,0.03363182,88106.0,88090.0,0.22706089]
[1766189423367,0.00568,88106.0,88090.0,0.22706089]
[1766189425270,0.00017029,88107.0,88096.0,0.22706089]
[1766189425462,0.0113562,88115.0,88097.0,0.00568]
[1766189425668,0.0113562,88115.0,88100.0,0.22706089]
[1766189426071,0.0113562,88115.0,88097.0,0.00568]
[1766189426272,0.0113564,88113.0,88097.0,0.00568]
[1766189427169,0.00017029,88114.0,88097.0,0.00568]
[1766189428260,0.00017029,88114.0,88097.0,0.0170384]
[1766189428665,0.00017029,88114.0,88097.0,0.00568]
[1766189429972,0.00017029,88114.0,88098.0,0.0113582]
[1766189430466,0.00017029,88114.0,88100.0,0.22706089]
[1766189432484,0.00017029,88114.0,88101.0,0.0113579]
[1766189434179,0.0113539,88132.0,88106.0,0.0113572]
[1766189434473,0.00356,88131.0,88110.0,0.22706089]
[1766189434674,0.22706089,88130.0,88110.0,0.22706089]
[1766189434869,0.0113543,88129.0,88110.0,0.22706089]
[1766189435275,0.00017029,88128.0,88111.0,0.00017029]
[1766189435976,0.0113547,88127.0,88111.0,0.00017029]
[1766189437880,0.0113547,88127.0,88112.0,0.00568]
[1766189440181,0.011355,88124.0,88112.0,0.00568]
[1766189441876,0.0113562,88115.0,88091.0,0.0113592]
[1766189442082,0.22706089,88110.0,88092.0,0.00568]
[1766189442380,0.23841769,88110.0,88093.0,0.00568]
[1766189442784,0.0113568,88110.0,88093.0,0.00568]
[1766189442983,0.00017029,88110.0,88093.0,0.00585029]
[1766189443989,0.00017029,88110.0,88094.0,0.0113588]
[1766189444684,0.00017029,88110.0,88093.0,0.00585029]
[1766189445479,0.011357,88109.0,88093.0,0.00585029]
[1766189445681,0.22723118,88110.0,88093.0,0.00017029]
[1766189445885,0.00017029,88110.0,88094.0,0.00568]
[1766189446083,0.22723118,88110.0,88094.0,0.00568]
[1766189446482,0.22723118,88110.0,88093.0,0.00585029]
[1766189447079,0.22723118,88110.0,88093.0,0.01720919]
[1766189448490,0.22723118,88110.0,88093.0,0.01152919]
[1766189449686,0.22723118,88110.0,88093.0,0.00017029]
[1766189450175,0.00568,88109.0,88093.0,0.00017029]
[1766189451486,0.00568,88109.0,88094.0,0.0113588]
[1766189452192,0.00568,88109.0,88093.0,0.00017029]
[1766189452685,0.00568,88109.0,88093.0,0.01152919]
[1766189457688,0.0113575,88105.0,88084.0,0.0113601]
[1766189457878,0.00568,88104.0,88084.0,0.00568]
[1766189458078,0.00568,88104.0,88083.0,0.0113602]
[1766189458282,0.00568,88104.0,88084.0,0.00568]
[1766189458690,0.00017029,88103.0,88085.0,0.00017029]
[1766189459892,0.00017029,88103.0,88090.0,0.22706089]
[1766189460093,0.00017029,88103.0,88086.0,0.0113598]
[1766189461493,0.00017029,88103.0,88085.0,0.00017029]
[1766189462289,0.00017029,88103.0,88086.0,0.0113599]
[1766189465597,0.00017029,88103.0,88090.0,0.22706089]
[1766189466996,0.00288,88108.0,88094.0,0.23841969]
[1766189467184,0.00288,88108.0,88091.0,0.00568]
[1766189467782,0.00305029,88108.0,88091.0,0.00585029]
[1766189468794,0.01440739,88108.0,88091.0,0.00585029]
[1766189469689,0.01440739,88108.0,88091.0,0.00017029]
[1766189472500,0.00305029,88108.0,88091.0,0.00017029]
[1766189474598,0.00305029,88108.0,88091.0,0.00568]
[1766189474599,0.0113577,88104.0,88091.0,0.00568]
[1766189475104,0.00305029,88108.0,88091.0,0.00568]
[1766189475704,0.00305029,88108.0,88091.0,0.00585029]
[1766189481305,0.0113572,88107.0,88091.0,0.00585029]
[1766189482507,0.06078803,88139.0,88091.0,0.00585029]
[1766189482710,0.0113538,88134.0,88111.0,0.0113566]
[1766189482904,0.0113541,88132.0,88112.0,0.00568]
[1766189483111,0.00568,88131.0,88113.0,0.0113564]
[1766189483412,0.00568,88130.0,88113.0,0.0113564]
[1766189483613,0.00585029,88130.0,88113.0,0.01152669]
[1766189484913,0.00585029,88130.0,88113.0,0.00017029]
[1766189486014,0.01720459,88130.0,88113.0,0.00017029]
[1766189489017,0.00585029,88130.0,88114.0,0.0113562]
[1766189489219,0.00585029,88130.0,88117.0,0.0113558]
[1766189489617,0.00017029,88130.0,88117.0,0.0113558]
[1766189489818,0.00017029,88130.0,88113.0,0.00017029]
[1766189490012,0.00156,88131.0,88118.0,0.0113557]
[1766189490616,0.00152,88131.0,88113.0,0.00017029]
[1766189490825,0.00224,88134.0,88120.0,0.22699143]
[1766189491020,0.00585029,88136.0,88119.0,0.0113555]
[1766189491515,0.00585029,88136.0,88113.0,0.00017029]
[1766189491719,0.00585029,88136.0,88119.0,0.00568]
[1766189491922,0.01720379,88136.0,88119.0,0.00568]
[1766189492824,0.00585029,88136.0,88120.0,0.0113554]
[1766189496831,0.00585029,88136.0,88119.0,0.00568]
[1766189497827,0.00585029,88136.0,88119.0,0.0170356]
[1766189499125,0.00585029,88136.0,88122.0,0.0113552]
[1766189504241,0.00585029,88136.0,88119.0,0.00568]
[1766189505337,0.00585029,88136.0,88120.0,0.0113555]
[1766189507727,0.00585029,88136.0,88119.0,0.00568]
[1766189507933,0.00585029,88136.0,88119.0,0.0170356]
[1766189512436,0.00585029,88136.0,88119.0,0.00568]
[1766189512638,2.9e-07,88136.0,88120.0,0.22699143]
[1766189513837,2.9e-07,88136.0,88126.0,0.0113547]
[1766189514047,0.0028,88141.0,88126.0,0.0113547]
[1766189516146,0.0028,88141.0,88120.0,0.22699143]
[1766189516346,1.44796,88162.0,88130.0,0.22699143]
[1766189516557,0.02843618,88161.0,88131.0,0.017034]
[1766189516741,0.02751618,88160.0,88131.0,0.017034]
[1766189516941,0.0113511,88155.0,88131.0,0.017034]
[1766189517141,0.0113514,88152.0,88131.0,0.017034]
[1766189517342,0.00017019,88150.0,88133.0,0.00017019]
[1766189519154,0.00017019,88150.0,88134.0,0.0113537]
[1766189520450,0.00017019,88150.0,88137.0,0.0113533]
[1766189521557,1.44788,88191.0,88140.0,0.45398286]
[1766189521753,0.011348,88179.0,88160.0,0.22699143]
[1766189522052,0.0113473,88184.0,88161.0,0.00568]
[1766189522350,0.001,88185.0,88161.0,0.00568]
[1766189522559,0.00011171,88181.0,88164.0,0.00017019]
[1766189523152,0.00011171,88181.0,88161.0,9e-08]
[1766189523358,0.01145941,88181.0,88161.0,9e-08]
[1766189524457,0.00011171,88181.0,88162.0,0.00017019]
[1766189526147,0.00011171,88181.0,88166.0,0.0113495]
[1766189527054,0.001,88185.0,88170.0,0.23834043]
[1766189527245,0.00068,88192.0,88170.0,0.24402043]
[1766189527959,0.00068,88192.0,88173.0,0.0113486]
[1766189528158,0.00017019,88191.0,88173.0,0.0113486]
[1766189528750,0.00568,88198.0,88174.0,0.00568]
[1766189528947,0.0113473,88184.0,88170.0,0.00568]
[1766189529155,0.0113478,88181.0,88162.0,0.00013019]
[1766189529358,0.0113471,88186.0,88163.0,0.00568]
[1766189529660,0.0113475,88182.0,88163.0,0.00568]
[1766189530062,4e-05,88181.0,88163.0,0.00568]
[1766189535753,4e-05,88181.0,88164.0,0.0113497]
[1766189539769,0.01461968,88188.0,88164.0,0.0113497]
[1766189540170,0.0113472,88185.0,88164.0,0.0113497]
[1766189540974,0.00327288,88188.0,88167.0,0.0113494]
[1766189542568,0.00327288,88188.0,88170.0,0.011349]
[1766189542871,0.011347,88187.0,88171.0,0.00568]
[1766189543862,0.0113487,88173.0,88162.0,0.00013019]
[1766189544074,0.22659501,88180.0,88162.0,0.00013019]
[1766189544075,0.0113491,88170.0,88162.0,0.00013019]
[1766189544269,0.22659501,88172.0,88162.0,0.00581019]
[1766189544469,0.0113486,88174.0,88162.0,0.00581019]
[1766189544771,0.22659501,88180.0,88162.0,0.00581019]
[1766189544964,0.22659501,88180.0,88162.0,0.01716019]
[1766189545159,1.44716,88190.0,88162.0,0.00581019]
[1766189545160,0.00568,88179.0,88162.0,0.00581019]
[1766189545374,0.23794161,88190.0,88162.0,0.00581019]
[1766189545375,0.00568,88185.0,88170.0,0.22659501]
[1766189547274,0.00568,88185.0,88170.0,0.23227501]
[1766189550279,0.0113473,88184.0,88170.0,0.23227501]
[1766189550475,0.00568,88185.0,88170.0,0.23227501]
[1766189550676,0.00568,88185.0,88170.0,0.00568]
[1766189551277,0.0170272,88185.0,88170.0,0.00568]
[1766189551667,0.00568,88185.0,88170.0,0.00568]
[1766189555380,0.00568,88185.0,88171.0,0.0113489]
[1766189556087,0.00568,88187.0,88170.0,0.23227501]
[1766189556381,0.00568,88187.0,88174.0,0.0113485]
[1766189557477,0.00568,88189.0,88178.0,0.011348]
[1766189558780,0.00568,88189.0,88174.0,0.0113485]
[1766189559980,0.00568,88189.0,88170.0,0.00568]
[1766189560277,0.00568,88189.0,88170.0,0.23227501]
[1766189560482,0.0113471,88185.0,88170.0,0.23227501]
[1766189561278,0.0170267,88189.0,88170.0,0.23227501]
[1766189563788,0.011347,88186.0,88170.0,0.23227501]
[1766189564182,0.00568,88189.0,88170.0,0.23227501]
[1766189564382,0.00568,88189.0,88171.0,0.0113489]
[1766189564585,0.00568,88189.0,88170.0,0.24362401]
[1766189566790,0.00568,88189.0,88174.0,0.0113485]
[1766189567692,0.00568,88193.0,88179.0,0.22659501]
[1766189568384,1.4584651,88201.0,88177.0,0.00585009]
[1766189568385,0.00568,88197.0,88186.0,0.0113469]
[1766189568693,0.00568,88197.0,88182.0,0.0170274]
[1766189569185,0.00432,88202.0,88185.0,0.0113471]
[1766189569491,0.00432,88202.0,88182.0,0.00568]
[1766189569492,0.00432,88202.0,88183.0,0.0113474]
[1766189570086,0.00432,88202.0,88186.0,0.0113469]
[1766189570288,0.00432,88202.0,88187.0,0.0113468]
[1766189570492,0.00432,88202.0,88190.0,0.22659501]
[1766189570808,0.00568,88209.0,88197.0,0.0113455]
[1766189571092,0.00568,88209.0,88195.0,0.0113458]
[1766189571498,0.0113432,88216.0,88199.0,0.22659501]
[1766189571684,0.0113435,88214.0,88199.0,0.22659501]
[1766189571884,0.0113435,88214.0,88196.0,0.00568]
[1766189573307,0.0113439,88210.0,88170.0,1.44704]
[1766189573489,0.22659501,88200.0,88170.0,0.22659501]
[1766189573795,0.00568,88199.0,88171.0,0.00568]
[1766189574293,0.00568,88199.0,88180.0,0.22659501]
[1766189574495,0.0113459,88195.0,88181.0,0.00585009]
[1766189576687,0.01151526,88198.0,88181.0,0.00585009]
[1766189576995,0.00016976,88198.0,88181.0,0.00585009]
[1766189578284,0.0113461,88194.0,88181.0,0.00585009]
[1766189578895,0.00016976,88198.0,88181.0,0.00585009]
[1766189579094,0.0113456,88197.0,88181.0,0.00585009]
[1766189579493,0.00016976,88198.0,88181.0,0.00585009]
[1766189579999,0.00016976,88198.0,88181.0,0.01719769]
[1766189580292,0.00016976,88198.0,88181.0,0.01719759]
[1766189580487,0.00016976,88198.0,88188.0,0.23794171]
[1766189580684,0.0113431,88217.0,88188.0,0.22659501]
[1766189580885,0.00368,88216.0,88207.0,0.22659501]
[1766189581085,0.00368,88216.0,88200.0,0.22659501]
[1766189583892,0.00368,88216.0,88201.0,0.011345]
[1766189584500,0.00368,88216.0,88200.0,0.22659501]
[1766189585006,0.0113416,88228.0,88206.0,0.22659501]
[1766189585197,1.44692,88233.0,88210.0,0.22659501]
[1766189585387,0.22659501,88230.0,88210.0,0.22659501]
[1766189585703,0.0113418,88227.0,88210.0,0.22659501]
[1766189586003,0.0113421,88225.0,88210.0,0.22659501]
[1766189586298,0.0113421,88225.0,88206.0,0.00568]
[1766189586299,0.00568,88224.0,88206.0,0.00568]
[1766189586999,0.0113423,88223.0,88206.0,0.00568]
[1766189587602,0.0113428,88219.0,88206.0,0.00568]
[1766189588203,0.00568,88224.0,88209.0,0.22659501]
[1766189588402,0.00568,88224.0,88209.0,1e-08]
[1766189588702,0.0113438,88211.0,88209.0,1e-08]
[1766189588907,0.0113438,88211.0,88206.0,1e-08]
[1766189589506,0.0113436,88212.0,88206.0,1e-08]
[1766189589696,0.0113432,88216.0,88206.0,1e-08]
[1766189590407,0.0113436,88213.0,88206.0,1e-08]
[1766189590906,0.00568,88224.0,88206.0,1e-08]
[1766189591505,0.0113436,88213.0,88206.0,1e-08]
[1766189592694,0.00568,88224.0,88206.0,1e-08]
[1766189594004,0.0113436,88213.0,88206.0,1e-08]
[1766189599601,0.0113431,88217.0,88206.0,1e-08]
[1766189599810,0.00568,88224.0,88206.0,1e-08]
[1766189600216,0.22659501,88220.0,88199.0,0.00017009]
[1766189600415,0.0113449,88203.0,88199.0,9e-08]
[1766189600710,0.0113449,88203.0,88181.0,0.0113476]
[1766189600711,0.22659501,88210.0,88180.0,0.22659501]
[1766189600914,0.22659501,88200.0,88170.0,0.22659501]
[1766189601119,0.0113469,88188.0,88166.0,1.44668]
[1766189601419,0.0113472,88185.0,88173.0,0.00568]
[1766189601718,0.0113472,88185.0,88174.0,0.00568]
[1766189601908,0.0113472,88185.0,88170.0,0.22659501]
[1766189602103,0.0113472,88185.0,88173.0,0.00568]
[1766189602304,0.00017009,88187.0,88173.0,0.00568]
[1766189603808,0.00017009,88187.0,88170.0,0.2267651]
[1766189604120,0.0169461,88194.0,88177.0,0.22659501]
[1766189604319,0.0169461,88194.0,88180.0,0.22659501]
[1766189604512,0.0169461,88194.0,88181.0,0.00568]
[1766189604708,0.0113461,88194.0,88181.0,0.00568]
[1766189610212,0.00568,88200.0,88181.0,0.00568]
[1766189610414,0.07212973,88228.0,88181.0,0.00568]
[1766189610415,1.44684,88222.0,88190.0,0.22653939]
[1766189610618,0.0113438,88211.0,88197.0,0.00017009]
[1766189610827,0.0170238,88211.0,88197.0,0.00017009]
[1766189612718,0.00568,88211.0,88197.0,0.00017009]
[1766189615737,0.0113439,88210.0,88197.0,0.00017009]
[1766189621937,0.0113439,88210.0,88181.0,0.0113476]
[1766189621938,0.22653939,88210.0,88181.0,0.0113476]
[1766189622145,0.0113445,88206.0,88188.0,0.00176]
[1766189622943,0.01151459,88206.0,88188.0,0.00193009]
[1766189623546,0.00017009,88206.0,88188.0,0.00193009]
[1766189623846,0.00017009,88206.0,88190.0,0.22653939]
[1766189624240,0.00017009,88206.0,88191.0,0.0113463]
[1766189624843,9e-08,88206.0,88190.0,0.22653939]
[1766189625044,9e-08,88206.0,88196.0,0.0113457]
[1766189625234,9e-08,88206.0,88196.0,0.0170257]
[1766189625437,9e-08,88206.0,88196.0,0.00568]
[1766189625642,9e-08,88206.0,88197.0,0.0113456]
[1766189626045,9e-08,88206.0,88196.0,0.00568]
[1766189635663,9e-08,88206.0,88197.0,0.0113456]
[1766189636548,9e-08,88206.0,88196.0,0.00568]
[1766189640153,9e-08,88206.0,88196.0,0.0170257]
[1766189640353,9e-08,88206.0,88199.0,0.0113453]
[1766189640561,9e-08,88206.0,88196.0,0.00568]
[1766189652078,9e-08,88206.0,88190.0,0.00568]
[1766189652358,0.011345,88202.0,88188.0,0.00585009]
[1766189652953,0.01134459,88206.0,88188.0,0.00585009]
[1766189653460,9e-08,88206.0,88188.0,0.00585009]
[1766189654455,9e-08,88206.0,88188.0,0.01719679]
[1766189655462,9e-08,88206.0,88188.0,0.00585009]
[1766189656250,9e-08,88206.0,88188.0,0.01719669]
[1766189656455,9e-08,88206.0,88193.0,0.011346]
[1766189659465,9e-08,88206.0,88190.0,0.22653939]
[1766189659772,9e-08,88206.0,88188.0,0.00585009]
[1766189662772,0.0113446,88205.0,88188.0,0.00585009]
[1766189663267,9e-08,88206.0,88188.0,0.00585009]
[1766189667369,9e-08,88206.0,88190.0,0.22647401]
[1766189670470,0.0113458,88196.0,88188.0,0.00017009]
[1766189670665,0.00568,88197.0,88174.0,0.08714413]
[1766189670971,0.00568,88197.0,88174.0,0.00568]
[1766189671171,0.0170257,88197.0,88177.0,0.0113481]
[1766189671971,0.00568,88197.0,88178.0,0.00017009]
[1766189673877,0.00568,88197.0,88179.0,0.0113478]
[1766189676367,0.00568,88197.0,88178.0,0.00017009]
[1766189676368,0.00568,88197.0,88183.0,0.0113474]
[1766189676569,0.0028,88196.0,88187.0,0.22656245]
[1766189678079,0.00568,88201.0,88187.0,0.22656245]
[1766189678574,0.00568,88201.0,88190.0,0.22656245]
[1766189680978,0.00568,88201.0,88183.0,0.0113473]
[1766189681780,0.00568,88201.0,88190.0,0.22656245]
[1766189682474,0.00568,88201.0,88183.0,0.0113473]
[1766189686484,0.0170252,88201.0,88181.0,0.0113476]
[1766189688792,0.00568,88201.0,88181.0,0.0113476]
[1766189689287,0.00568,88201.0,88184.0,0.0113472]
[1766189689475,9e-08,88206.0,88190.0,0.22656245]
[1766189689679,0.00568009,88206.0,88190.0,0.22656245]
[1766189689984,0.22656245,88200.0,88178.0,0.00017009]
[1766189690184,0.22656245,88200.0,88151.0,0.0113514]
[1766189690185,0.22656245,88188.0,88151.0,0.0113514]
[1766189690389,0.22656245,88188.0,88141.0,0.0023796]
[1766189690390,0.22656245,88170.0,88127.0,0.08154238]
[1766189690689,0.22656245,88150.0,88130.0,0.22704245]
[1766189690883,0.00568,88149.0,88140.0,0.22656245]
[1766189691289,9.551e-05,88148.0,88140.0,0.22656245]
[1766189691587,0.00568,88162.0,88140.0,0.22656245]
[1766189691786,0.0113483,88176.0,88150.0,0.0113516]
[1766189691990,0.0018,88175.0,88160.0,0.22656245]
[1766189692389,0.00568,88174.0,88160.0,0.22656245]
[1766189696995,0.00568,88174.0,88160.0,0.23224245]
[1766189699998,0.22656245,88170.0,88158.0,0.00017009]
[1766189700203,0.0113506,88158.0,88140.0,0.22656245]
[1766189700399,0.0113512,88154.0,88134.0,1.44716]
[1766189700597,0.00568,88165.0,88140.0,0.22656245]
[1766189700800,0.00568,88165.0,88141.0,0.00568]
[1766189700990,0.0113506,88159.0,88141.0,0.00568]
[1766189701187,0.0113487,88174.0,88149.0,0.22656245]
[1766189701400,0.00356,88174.0,88160.0,0.22656245]
[1766189701701,0.00176,88175.0,88160.0,0.22656245]
[1766189702700,1.4472,88192.0,88159.0,0.00017019]
[1766189702701,0.0113471,88186.0,88165.0,0.22656245]
[1766189702898,0.0113471,88186.0,88170.0,0.22656245]
[1766189703201,0.0149071,88186.0,88170.0,0.22656245]
[1766189703403,0.0149071,88186.0,88169.0,0.00568]
[1766189704000,0.00356,88186.0,88169.0,0.00568]
[1766189704606,0.0113476,88182.0,88169.0,0.00568]
[1766189705588,0.00356,88186.0,88169.0,0.00568]
[1766189706892,0.0113462,88193.0,88169.0,0.00568]
[1766189707095,0.00332,88188.0,88172.0,0.0001701]
[1766189708608,0.0113461,88194.0,88173.0,0.0113486]
[1766189708904,0.0032,88190.0,88173.0,0.0113486]
[1766189709908,0.0032,88190.0,88172.0,0.0001701]
[1766189710503,0.0113461,88194.0,88172.0,0.0115188]
[1766189710802,0.00292,88195.0,88175.0,0.0113484]
[1766189711003,0.28322147,88220.0,88186.0,0.0113469]
[1766189711310,0.0113433,88215.0,88194.0,0.0001701]
[1766189711497,0.011344,88210.0,88194.0,0.0001701]
[1766189712001,0.0113444,88207.0,88194.0,0.0001701]
[1766189713408,0.00568,88214.0,88194.0,1e-07]
[1766189713610,0.0113446,88205.0,88194.0,1e-07]
[1766189713901,0.0170246,88205.0,88194.0,1e-07]
[1766189715308,0.011345,88202.0,88194.0,1e-07]
[1766189717309,0.00568,88205.0,88194.0,1e-07]
[1766189717809,0.0170246,88205.0,88194.0,1e-07]
[1766189724420,0.00568,88205.0,88194.0,1e-07]
[1766189726612,0.00568,88205.0,88195.0,0.22647639]
[1766189727421,0.00568,88205.0,88194.0,1e-07]
[1766189728814,0.0113447,88204.0,88194.0,1e-07]
[1766189729011,0.0113459,88195.0,88188.0,0.00152]
[1766189729210,0.0113453,88199.0,88188.0,0.00152]
[1766189731527,0.0113449,88203.0,88188.0,0.00152]
[1766189733127,0.00568,88205.0,88188.0,0.00152]
[1766189740424,0.00568,88205.0,88189.0,0.0113466]
[1766189743340,0.00568,88205.0,88188.0,0.00152]
[1766189744535,0.00016992,88208.0,88195.0,0.22646551]
[1766189745340,0.00016992,88208.0,88192.0,0.0113461]
[1766189746032,0.00016992,88208.0,88190.0,0.22646551]
[1766189746235,0.00016992,88208.0,88188.0,0.00152]
[1766189746236,0.0113425,88222.0,88199.0,0.0113453]
[1766189746428,0.03011926,88221.0,88199.0,0.0113453]
[1766189746623,0.02795926,88220.0,88199.0,0.0113453]
[1766189746928,0.02795926,88219.0,88200.0,0.22646551]
[1766189747137,0.02795926,88218.0,88201.0,0.0001701]
[1766189747433,0.0113426,88220.0,88201.0,0.0001701]
[1766189747742,0.02795421,88219.0,88202.0,0.0113448]
[1766189747934,0.0113426,88220.0,88201.0,0.0001701]
[1766189748129,0.00216,88221.0,88201.0,0.0001701]
[1766189748330,0.02795001,88220.0,88201.0,0.0001701]
[1766189748530,0.00216,88221.0,88201.0,0.0001701]
[1766189748730,0.02795004,88220.0,88201.0,0.0001701]
[1766189749039,0.00216,88221.0,88201.0,0.0001701]
[1766189749240,0.0113428,88219.0,88201.0,0.0001701]
[1766189749939,0.0113432,88216.0,88201.0,0.0001701]
[1766189750140,0.00216,88221.0,88201.0,0.0001701]
[1766189750342,0.02794402,88220.0,88201.0,0.0001701]
[1766189750536,0.0113441,88209.0,88197.0,0.00568]
[1766189751042,0.00216,88221.0,88197.0,0.00568]
[1766189751043,0.0113436,88213.0,88197.0,0.00568]
[1766189754245,0.0001701,88214.0,88197.0,0.00568]
[1766189756638,0.0001701,88214.0,88200.0,0.22646551]
[1766189757040,0.0001701,88214.0,88200.0,0.23781061]
[1766189757544,0.0001701,88214.0,88200.0,0.0113451]
[1766189757846,0.0001701,88214.0,88200.0,0.22646551]
[1766189758144,0.0001701,88214.0,88201.0,0.0113451]
[1766189759044,0.0001701,88214.0,88200.0,0.22646551]
[1766189759546,0.0001701,88214.0,88197.0,0.00568]
[1766189761546,0.0001701,88214.0,88200.0,0.22646551]
[1766189768648,0.06078803,88237.0,88200.0,0.22646551]
[1766189768649,0.06078803,88239.0,88200.0,0.22646551]
[1766189768837,0.0113394,88246.0,88221.0,0.0113424]
[1766189769146,0.0113397,88243.0,88222.0,0.00568]
[1766189769444,0.00568,88253.0,88222.0,0.00568]
[1766189769646,0.0113397,88243.0,88222.0,0.00568]
[1766189769848,0.0113397,88243.0,88229.0,0.00016999]
[1766189770046,0.0113397,88243.0,88220.0,0.09646551]
[1766189770235,0.0113441,88209.0,88188.0,0.08155666]
[1766189770436,0.0113441,88209.0,88175.0,0.14309672]
[1766189770437,0.00356,88208.0,88177.0,0.08155666]
[1766189770638,0.0113461,88193.0,88173.0,0.00568]
[1766189770846,1.4466,88209.0,88173.0,0.00568]
[1766189770847,0.00568,88195.0,88173.0,0.00568]
[1766189771037,0.00568,88195.0,88163.0,0.08164125]
[1766189771038,0.22646551,88190.0,88175.0,9e-08]
[1766189771243,0.22646551,88190.0,88168.0,0.0018]
[1766189771549,0.0113474,88183.0,88167.0,0.0006]
[1766189771955,0.0113479,88180.0,88167.0,0.0006]
[1766189772745,0.00568,88185.0,88167.0,0.0006]
[1766189773146,0.0113473,88184.0,88167.0,0.0006]
[1766189773750,0.00568,88185.0,88167.0,0.0006]
[1766189774150,0.0113473,88184.0,88167.0,0.0006]
[1766189776558,0.00568,88185.0,88167.0,0.0006]
[1766189777352,0.00344,88188.0,88170.0,0.22646551]
[1766189778552,0.00344,88188.0,88171.0,0.0113489]
[1766189780163,0.00344,88188.0,88175.0,0.0113484]
[1766189780353,0.00344,88188.0,88176.0,0.00568]
[1766189781859,0.00017006,88193.0,88177.0,0.0113481]
[1766189784062,0.00017006,88193.0,88180.0,0.0113477]
[1766189784859,0.00017006,88193.0,88176.0,0.00568]
[1766189784860,0.00017006,88193.0,88176.0,0.0170283]
[1766189787269,0.00017006,88193.0,88176.0,0.00568]
[1766189787461,0.0113474,88183.0,88165.0,0.00017009]
[1766189787660,0.0113482,88177.0,88165.0,0.00017009]
[1766189787860,0.0113477,88181.0,88166.0,0.00568]
[1766189788568,0.0113472,88185.0,88166.0,0.00568]
[1766189789373,0.00568,88186.0,88170.0,0.22654951]
[1766189789567,0.00568,88186.0,88171.0,0.0113489]
[1766189790170,0.00568,88186.0,88174.0,0.0113484]